[Event "*** Titled Tuesday Blitz"]
[Site "Chess.com"]
[Date "2020.05.12"]
[Round "8"]
[White "ChessBitl"]
[Black "uchenic"]
[Result "1-0"]
[WhiteElo "2319"]
[BlackElo "2444"]
[TimeControl "180+1"]
[EndTime "11:33:00 PDT"]
[Termination "ChessBitl won by resignation"]

1. e4 {[%clk 0:03:00.6]} 1... e6 {[%clk 0:03:00.1]} 2. d4 {[%clk 0:03:00.3]}
2... d5 {[%clk 0:03:00.4]} 3. Nd2 {[%clk 0:03:00.8]} 3... Nf6 {[%clk 0:03:00]}
4. e5 {[%clk 0:03:00.6]} 4... Nfd7 {[%clk 0:03:00.4]} 5. c3 {[%clk 0:03:01.2]}
5... c5 {[%clk 0:03:00.8]} 6. Bd3 {[%clk 0:03:01.6]} 6... Nc6 {[%clk 0:03:01.2]}
7. Ne2 {[%clk 0:03:01.4]} 7... cxd4 {[%clk 0:03:01.5]} 8. cxd4 {[%clk
0:03:01.3]} 8... f6 {[%clk 0:03:02]} 9. exf6 {[%clk 0:03:01.5]} 9... Nxf6 {[%clk
0:03:01.9]} 10. Nf3 {[%clk 0:03:01.2]} 10... Bd6 {[%clk 0:03:02]} 11. O-O {[%clk
0:03:00.9]} 11... Qc7 {[%clk 0:03:02.4]} 12. a3 {[%clk 0:02:56.7]} 12... O-O
{[%clk 0:03:01.7]} 13. b4 {[%clk 0:02:56.4]} 13... a6 {[%clk 0:03:01.4]} 14. Bg5
{[%clk 0:02:56.2]} 14... h6 {[%clk 0:03:00.5]} 15. Bh4 {[%clk 0:02:55.8]} 15...
Nh5 {[%clk 0:03:00.3]} 16. Bg3 {[%clk 0:02:46.5]} 16... Nxg3 {[%clk 0:02:57.3]}
17. hxg3 {[%clk 0:02:47.1]} 17... Qf7 {[%clk 0:02:46.4]} 18. Qc2 {[%clk
0:02:43.9]} 18... Bd7 {[%clk 0:02:40.2]} 19. Nh4 {[%clk 0:02:38]} 19... g5
{[%clk 0:02:21.8]} 20. Ng6 {[%clk 0:02:26.4]} 20... Rfc8 {[%clk 0:02:21.3]} 21.
Qd2 {[%clk 0:02:21.5]} 21... Qf6 {[%clk 0:02:07.6]} 22. f4 {[%clk 0:02:17.3]}
22... Nxd4 {[%clk 0:01:57]} 23. Nxd4 {[%clk 0:01:59.8]} 23... Qxd4+ {[%clk
0:01:55.8]} 24. Kh2 {[%clk 0:02:00.3]} 24... Bb5 {[%clk 0:01:35.2]} 25. Ne7+
{[%clk 0:01:53.6]} 25... Kg7 {[%clk 0:01:32.1]} 26. Nxc8 {[%clk 0:01:52.6]}
26... Rxc8 {[%clk 0:01:32]} 27. Rad1 {[%clk 0:01:45.3]} 27... Rc3 {[%clk
0:00:57.8]} 28. Bxb5 {[%clk 0:01:34.2]} 28... Qxd2 {[%clk 0:00:57.1]} 29. Rxd2
{[%clk 0:01:33.8]} 29... axb5 {[%clk 0:00:57.6]} 30. Rf3 {[%clk 0:01:22.3]}
30... Rxf3 {[%clk 0:00:52.8]} 31. gxf3 {[%clk 0:01:22.4]} 31... gxf4 {[%clk
0:00:53.2]} 32. g4 {[%clk 0:01:22.9]} 32... Kf6 {[%clk 0:00:49.2]} 33. Kg2
{[%clk 0:01:16.4]} 33... Bc7 {[%clk 0:00:45.5]} 34. Rc2 {[%clk 0:01:13.2]} 34...
Bb6 {[%clk 0:00:45.7]} 35. Rc8 {[%clk 0:01:05.7]} 35... e5 {[%clk 0:00:45.1]}
36. Rb8 {[%clk 0:01:03.7]} 36... e4 {[%clk 0:00:43.4]} 37. Rxb7 {[%clk
0:01:04.2]} 37... Bd4 {[%clk 0:00:43.3]} 38. Rxb5 {[%clk 0:01:02.5]} 38... Ke5
{[%clk 0:00:39.3]} 39. fxe4 {[%clk 0:01:00.9]} 39... Kxe4 {[%clk 0:00:39.5]} 40.
Rb8 {[%clk 0:00:57.6]} 40... f3+ {[%clk 0:00:35.4]} 41. Kf1 {[%clk 0:00:57.3]}
41... Kf4 {[%clk 0:00:35.5]} 42. Rd8 {[%clk 0:00:56.4]} 42... Kxg4 {[%clk
0:00:32.5]} 43. Rxd5 {[%clk 0:00:55.8]} 43... Bc3 {[%clk 0:00:32.6]} 44. b5
{[%clk 0:00:54.7]} 44... Ba5 {[%clk 0:00:30.8]} 45. Rd4+ {[%clk 0:00:49.7]}
45... Kg3 {[%clk 0:00:30.2]} 46. Ra4 {[%clk 0:00:49.3]} 46... Bd8 {[%clk
0:00:25.4]} 47. Ra8 {[%clk 0:00:48]} 47... Bc7 {[%clk 0:00:24.1]} 48. Rc8 {[%clk
0:00:47.1]} 48... Ba5 {[%clk 0:00:23.1]} 49. Rh8 {[%clk 0:00:46.7]} 49... Kf4
{[%clk 0:00:10.4]} 50. Rxh6 {[%clk 0:00:43.6]} 50... Ke4 {[%clk 0:00:09.9]} 51.
b6 {[%clk 0:00:43.7]} 51... Kd4 {[%clk 0:00:09.5]} 52. b7 {[%clk 0:00:43.7]}
52... Bc7 {[%clk 0:00:09.7]} 53. Rh8 {[%clk 0:00:43.7]} 53... Kc4 {[%clk
0:00:08]} 54. Rc8 {[%clk 0:00:42.5]} 1-0

[Event "*** Titled Tuesday Blitz"]
[Site "Chess.com"]
[Date "2020.05.12"]
[Round "8"]
[White "Andro2"]
[Black "agrigo3"]
[Result "1-0"]
[WhiteElo "2435"]
[BlackElo "2283"]
[TimeControl "180+1"]
[EndTime "11:33:00 PDT"]
[Termination "Andro2 won by checkmate"]

1. a3 {[%clk 0:03:00.9]} 1... d5 {[%clk 0:02:58.3]} 2. Nf3 {[%clk 0:02:59.7]}
2... Nf6 {[%clk 0:02:58.1]} 3. g3 {[%clk 0:02:57.4]} 3... Bg4 {[%clk 0:02:58.1]}
4. Bg2 {[%clk 0:02:57.1]} 4... c6 {[%clk 0:02:58.1]} 5. b4 {[%clk 0:02:54.7]}
5... Nbd7 {[%clk 0:02:58.1]} 6. Bb2 {[%clk 0:02:54.8]} 6... e6 {[%clk
0:02:44.4]} 7. O-O {[%clk 0:02:54]} 7... Be7 {[%clk 0:02:41.2]} 8. d3 {[%clk
0:02:54.1]} 8... O-O {[%clk 0:02:41.6]} 9. Nbd2 {[%clk 0:02:54.1]} 9... a5
{[%clk 0:02:35]} 10. c3 {[%clk 0:02:50.8]} 10... Qc7 {[%clk 0:02:26.4]} 11. Rc1
{[%clk 0:02:41.8]} 11... e5 {[%clk 0:02:21.8]} 12. e4 {[%clk 0:02:37.2]} 12...
axb4 {[%clk 0:02:01.9]} 13. cxb4 {[%clk 0:02:32.8]} 13... d4 {[%clk 0:01:59]}
14. h3 {[%clk 0:02:31.2]} 14... Bxf3 {[%clk 0:01:52.1]} 15. Bxf3 {[%clk
0:02:30.5]} 15... c5 {[%clk 0:01:46]} 16. Bg2 {[%clk 0:02:20.8]} 16... Rfc8
{[%clk 0:01:45.2]} 17. f4 {[%clk 0:02:19.4]} 17... Qd8 {[%clk 0:01:38.4]} 18. b5
{[%clk 0:02:11.1]} 18... Nb6 {[%clk 0:01:24.7]} 19. Nc4 {[%clk 0:02:00]} 19...
Nfd7 {[%clk 0:01:14.7]} 20. fxe5 {[%clk 0:01:50.4]} 20... Nxc4 {[%clk
0:01:12.6]} 21. Rxc4 {[%clk 0:01:50.2]} 21... Nxe5 {[%clk 0:01:12.6]} 22. Rc1
{[%clk 0:01:48.5]} 22... b6 {[%clk 0:00:53]} 23. Kh2 {[%clk 0:01:48]} 23... Bg5
{[%clk 0:00:51.7]} 24. Rb1 {[%clk 0:01:31.5]} 24... Be3 {[%clk 0:00:51.1]} 25.
a4 {[%clk 0:01:15.4]} 25... c4 {[%clk 0:00:47.4]} 26. dxc4 {[%clk 0:01:13.7]}
26... Nxc4 {[%clk 0:00:47.2]} 27. Bc1 {[%clk 0:01:14.2]} 27... Bxc1 {[%clk
0:00:39]} 28. Qxc1 {[%clk 0:01:13.9]} 28... Ne3 {[%clk 0:00:38.9]} 29. Qa3
{[%clk 0:01:09.3]} 29... Rc3 {[%clk 0:00:32.6]} 30. Qa2 {[%clk 0:01:05.4]} 30...
Nxf1+ {[%clk 0:00:29.3]} 31. Rxf1 {[%clk 0:01:04.2]} 31... Ra7 {[%clk
0:00:28.3]} 32. e5 {[%clk 0:01:03.5]} 32... Qg5 {[%clk 0:00:24.5]} 33. g4 {[%clk
0:00:58.8]} 33... Qxe5+ {[%clk 0:00:23.6]} 34. Kh1 {[%clk 0:00:58.2]} 34... g6
{[%clk 0:00:21.3]} 35. a5 {[%clk 0:00:54.7]} 35... bxa5 {[%clk 0:00:17.6]} 36.
b6 {[%clk 0:00:54.2]} 36... Re7 {[%clk 0:00:16.5]} 37. b7 {[%clk 0:00:50.7]}
37... d3 {[%clk 0:00:16.7]} 38. Qb2 {[%clk 0:00:45.2]} 38... Rc2 {[%clk
0:00:09.8]} 39. b8=Q+ {[%clk 0:00:43.2]} 39... Qxb8 {[%clk 0:00:08.9]} 40. Qxb8+
{[%clk 0:00:42.3]} 40... Kg7 {[%clk 0:00:09.8]} 41. Qd6 {[%clk 0:00:40.6]} 41...
Ree2 {[%clk 0:00:07.7]} 42. Qf6+ {[%clk 0:00:39.6]} 42... Kh6 {[%clk 0:00:05.8]}
43. Qf4+ {[%clk 0:00:38.8]} 43... Kg7 {[%clk 0:00:05.3]} 44. Qxf7+ {[%clk
0:00:38.7]} 44... Kh6 {[%clk 0:00:05.4]} 45. Qf8+ {[%clk 0:00:38.9]} 45... Kg5
{[%clk 0:00:03.1]} 46. Qf6+ {[%clk 0:00:37.8]} 46... Kh6 {[%clk 0:00:03.2]} 47.
Qf4+ {[%clk 0:00:36.7]} 47... Kg7 {[%clk 0:00:02.9]} 48. Qf8# {[%clk 0:00:35.4]}
1-0

[Event "*** Titled Tuesday Blitz"]
[Site "Chess.com"]
[Date "2020.05.12"]
[Round "8"]
[White "Shivagami"]
[Black "Ginzburg_Yakov"]
[Result "0-1"]
[WhiteElo "2210"]
[BlackElo "2395"]
[TimeControl "180+1"]
[EndTime "11:33:00 PDT"]
[Termination "Ginzburg_Yakov won on time"]

1. d4 {[%clk 0:02:55.4]} 1... d5 {[%clk 0:02:59]} 2. Bf4 {[%clk 0:02:52.7]} 2...
c5 {[%clk 0:02:51.9]} 3. e3 {[%clk 0:02:52.5]} 3... Nc6 {[%clk 0:02:44.7]} 4. c3
{[%clk 0:02:51.9]} 4... Nf6 {[%clk 0:02:39.4]} 5. Nd2 {[%clk 0:02:51.6]} 5...
Qb6 {[%clk 0:02:33]} 6. Qb3 {[%clk 0:02:49.1]} 6... c4 {[%clk 0:02:33]} 7. Qc2
{[%clk 0:02:49.5]} 7... g6 {[%clk 0:02:19]} 8. e4 {[%clk 0:02:49]} 8... dxe4
{[%clk 0:01:46.1]} 9. Nxc4 {[%clk 0:02:43.7]} 9... Qd8 {[%clk 0:01:45.6]} 10.
Ne3 {[%clk 0:02:38]} 10... Bg7 {[%clk 0:01:43.6]} 11. Bc4 {[%clk 0:02:36.5]}
11... O-O {[%clk 0:01:39.9]} 12. Ne2 {[%clk 0:02:36.3]} 12... Na5 {[%clk
0:01:30.8]} 13. Bb3 {[%clk 0:02:28.6]} 13... Nxb3 {[%clk 0:01:30.4]} 14. axb3
{[%clk 0:02:29.5]} 14... Bf5 {[%clk 0:01:18.1]} 15. O-O {[%clk 0:02:27.2]} 15...
Nd5 {[%clk 0:01:14.1]} 16. Bg3 {[%clk 0:02:12]} 16... e6 {[%clk 0:01:09.5]} 17.
c4 {[%clk 0:02:05.9]} 17... Nb4 {[%clk 0:01:08.5]} 18. Qc3 {[%clk 0:02:03.2]}
18... Nd3 {[%clk 0:01:07.6]} 19. Rfd1 {[%clk 0:01:46.3]} 19... Bh6 {[%clk
0:01:04.8]} 20. d5 {[%clk 0:01:29.5]} 20... Bg7 {[%clk 0:00:56]} 21. Nd4 {[%clk
0:01:21.9]} 21... Qb6 {[%clk 0:00:55.9]} 22. Nec2 {[%clk 0:00:52.4]} 22... exd5
{[%clk 0:00:55.7]} 23. cxd5 {[%clk 0:00:51.2]} 23... Rac8 {[%clk 0:00:56.4]} 24.
Nxf5 {[%clk 0:00:27.8]} 24... Bxc3 {[%clk 0:00:50.5]} 25. Ne7+ {[%clk
0:00:27.8]} 25... Kg7 {[%clk 0:00:46.4]} 26. Nxc8 {[%clk 0:00:25.9]} 26... Rxc8
{[%clk 0:00:44.2]} 27. bxc3 {[%clk 0:00:26.3]} 27... f6 {[%clk 0:00:42.5]} 28.
Nd4 {[%clk 0:00:20.4]} 28... Rxc3 {[%clk 0:00:39.9]} 29. Ne6+ {[%clk 0:00:20.7]}
29... Kf7 {[%clk 0:00:40]} 30. b4 {[%clk 0:00:16]} 30... Rc2 {[%clk 0:00:39.1]}
31. Rf1 {[%clk 0:00:14.1]} 31... f5 {[%clk 0:00:35.8]} 32. Bh4 {[%clk
0:00:13.3]} 32... h6 {[%clk 0:00:33.3]} 33. Nc5 {[%clk 0:00:08.8]} 33... g5
{[%clk 0:00:28.1]} 0-1

[Event "*** Titled Tuesday Blitz"]
[Site "Chess.com"]
[Date "2020.05.12"]
[Round "8"]
[White "Baby_Shak"]
[Black "WhiteKnight2612"]
[Result "1-0"]
[WhiteElo "2484"]
[BlackElo "2664"]
[TimeControl "180+1"]
[EndTime "11:33:01 PDT"]
[Termination "Baby_Shak won on time"]

1. d4 {[%clk 0:03:00.9]} 1... d6 {[%clk 0:02:57]} 2. e4 {[%clk 0:03:00.4]} 2...
Nf6 {[%clk 0:02:57.3]} 3. Nc3 {[%clk 0:03:01.3]} 3... g6 {[%clk 0:02:55.9]} 4.
f3 {[%clk 0:03:00.9]} 4... Bg7 {[%clk 0:02:56.4]} 5. Be3 {[%clk 0:03:01.2]} 5...
O-O {[%clk 0:02:56.8]} 6. Qd2 {[%clk 0:03:01.5]} 6... c5 {[%clk 0:02:56]} 7.
Nge2 {[%clk 0:03:01.3]} 7... cxd4 {[%clk 0:02:55.4]} 8. Nxd4 {[%clk 0:03:01]}
8... Nc6 {[%clk 0:02:55.8]} 9. O-O-O {[%clk 0:03:00.9]} 9... Bd7 {[%clk
0:02:56]} 10. h4 {[%clk 0:02:58.9]} 10... Rc8 {[%clk 0:02:54.8]} 11. h5 {[%clk
0:02:47.4]} 11... Ne5 {[%clk 0:02:54.2]} 12. Bh6 {[%clk 0:02:45.1]} 12... Bxh6
{[%clk 0:02:22.8]} 13. Qxh6 {[%clk 0:02:43.9]} 13... Rxc3 {[%clk 0:02:23]} 14.
bxc3 {[%clk 0:02:43.7]} 14... Qa5 {[%clk 0:02:23.3]} 15. hxg6 {[%clk 0:02:43.4]}
15... fxg6 {[%clk 0:02:22.6]} 16. Kb2 {[%clk 0:02:35.3]} 16... Rc8 {[%clk
0:02:21.4]} 17. Qe3 {[%clk 0:02:29.4]} 17... Be8 {[%clk 0:01:58.9]} 18. Nb3
{[%clk 0:02:24.7]} 18... Qc7 {[%clk 0:01:55.7]} 19. f4 {[%clk 0:02:21.7]} 19...
Neg4 {[%clk 0:01:53.8]} 20. Qg3 {[%clk 0:02:03.9]} 20... Nxe4 {[%clk 0:01:04.2]}
21. Qxg4 {[%clk 0:02:03.1]} 21... Qxc3+ {[%clk 0:01:04.3]} 22. Ka3 {[%clk
0:02:02.7]} 22... Rc5 {[%clk 0:01:04.3]} 23. Qe6+ {[%clk 0:01:36.7]} 23... Bf7
{[%clk 0:01:03.8]} 24. Qxe4 {[%clk 0:01:36.1]} 24... Ra5+ {[%clk 0:01:03.7]} 25.
Qa4 {[%clk 0:01:36.3]} 25... Rxa4+ {[%clk 0:01:04]} 26. Kxa4 {[%clk 0:01:37.2]}
26... Qxc2 {[%clk 0:01:04.3]} 27. Ra1 {[%clk 0:01:23.4]} 27... a6 {[%clk
0:01:04.5]} 28. Ka3 {[%clk 0:01:14.9]} 28... Qc3 {[%clk 0:01:00.8]} 29. Rc1
{[%clk 0:01:13.6]} 29... Qe3 {[%clk 0:00:57.9]} 30. Rh3 {[%clk 0:01:12.9]} 30...
Qxf4 {[%clk 0:00:53.4]} 31. Rf3 {[%clk 0:01:11.3]} 31... Qe5 {[%clk 0:00:51.8]}
32. Bc4 {[%clk 0:01:07.3]} 32... d5 {[%clk 0:00:50.3]} 33. Bd3 {[%clk
0:01:05.2]} 33... Kg7 {[%clk 0:00:50.1]} 34. Rc2 {[%clk 0:00:56]} 34... Qd6+
{[%clk 0:00:49]} 35. Kb2 {[%clk 0:00:55.9]} 35... e5 {[%clk 0:00:49.2]} 36. Be2
{[%clk 0:00:51.6]} 36... e4 {[%clk 0:00:48.2]} 37. Rf1 {[%clk 0:00:48.3]} 37...
Qe5+ {[%clk 0:00:48.1]} 38. Kb1 {[%clk 0:00:46.9]} 38... d4 {[%clk 0:00:48.2]}
39. Rc5 {[%clk 0:00:45.3]} 39... Qd6 {[%clk 0:00:47.3]} 40. Bc4 {[%clk
0:00:44.1]} 40... Be8 {[%clk 0:00:34.8]} 41. Rd5 {[%clk 0:00:40.9]} 41... Qg3
{[%clk 0:00:29.6]} 42. Nxd4 {[%clk 0:00:37.5]} 42... Qxg2 {[%clk 0:00:28.4]} 43.
Ne6+ {[%clk 0:00:37]} 43... Kh6 {[%clk 0:00:19.7]} 44. Rd2 {[%clk 0:00:36.8]}
44... Qh3 {[%clk 0:00:19.1]} 45. Rdd1 {[%clk 0:00:35.4]} 1-0

[Event "*** Titled Tuesday Blitz"]
[Site "Chess.com"]
[Date "2020.05.12"]
[Round "8"]
[White "Caisachess"]
[Black "gvanna"]
[Result "1-0"]
[WhiteElo "2325"]
[BlackElo "2453"]
[TimeControl "180+1"]
[EndTime "11:33:01 PDT"]
[Termination "Caisachess won on time"]

1. e4 {[%clk 0:02:58.6]} 1... c5 {[%clk 0:02:59.6]} 2. c3 {[%clk 0:02:58.1]}
2... d5 {[%clk 0:02:59.2]} 3. exd5 {[%clk 0:02:57.7]} 3... Qxd5 {[%clk
0:02:59.9]} 4. d4 {[%clk 0:02:58.4]} 4... Nf6 {[%clk 0:03:00.1]} 5. Nf3 {[%clk
0:02:58.8]} 5... Bg4 {[%clk 0:02:59.5]} 6. Nbd2 {[%clk 0:02:59]} 6... e6 {[%clk
0:02:59.4]} 7. Bc4 {[%clk 0:02:57.7]} 7... Qd8 {[%clk 0:02:50]} 8. Qb3 {[%clk
0:02:57.2]} 8... b6 {[%clk 0:02:46.3]} 9. Ne5 {[%clk 0:02:45.1]} 9... Bf5 {[%clk
0:02:17.2]} 10. Bb5+ {[%clk 0:02:35.9]} 10... Nbd7 {[%clk 0:02:11.5]} 11. Qa4
{[%clk 0:02:19.7]} 11... Bd6 {[%clk 0:02:05.7]} 12. Ndc4 {[%clk 0:02:10]} 12...
Qc7 {[%clk 0:01:51.1]} 13. Nxd6+ {[%clk 0:01:54]} 13... Qxd6 {[%clk 0:01:50.2]}
14. Bf4 {[%clk 0:01:52.8]} 14... O-O {[%clk 0:01:01.7]} 15. Bxd7 {[%clk
0:01:39.8]} 15... cxd4 {[%clk 0:00:41.8]} 16. cxd4 {[%clk 0:01:16]} 16... Nd5
{[%clk 0:00:40.8]} 17. Bg3 {[%clk 0:01:13.2]} 17... Qe7 {[%clk 0:00:35.1]} 18.
Bb5 {[%clk 0:01:06.9]} 18... f6 {[%clk 0:00:31.4]} 19. Nf3 {[%clk 0:01:03]}
19... a6 {[%clk 0:00:28.9]} 20. Bc6 {[%clk 0:00:58.1]} 20... b5 {[%clk
0:00:25.1]} 21. Qd1 {[%clk 0:00:53.2]} 21... Rac8 {[%clk 0:00:23.6]} 22. Bxd5
{[%clk 0:00:52.8]} 22... exd5+ {[%clk 0:00:23.7]} 23. Kf1 {[%clk 0:00:51.9]}
23... Rfe8 {[%clk 0:00:21.3]} 24. Kg1 {[%clk 0:00:50.9]} 24... Qb4 {[%clk
0:00:19.8]} 25. Qb3 {[%clk 0:00:41.5]} 25... Qa5 {[%clk 0:00:13.1]} 26. h3
{[%clk 0:00:40.9]} 26... Be4 {[%clk 0:00:11.6]} 27. Kh2 {[%clk 0:00:39.5]} 27...
Rc4 {[%clk 0:00:09.9]} 28. Rac1 {[%clk 0:00:35.2]} 28... Qb6 {[%clk 0:00:09.4]}
29. Nd2 {[%clk 0:00:27.7]} 29... Rxd4 {[%clk 0:00:08]} 30. Nxe4 {[%clk
0:00:26.2]} 30... Rdxe4 {[%clk 0:00:08.5]} 31. Qxd5+ {[%clk 0:00:25.3]} 31...
Kh8 {[%clk 0:00:09.1]} 32. Qc5 {[%clk 0:00:22.9]} 32... Qb7 {[%clk 0:00:08.9]}
33. Qc6 {[%clk 0:00:20.5]} 33... Qa7 {[%clk 0:00:07.7]} 34. Rhd1 {[%clk
0:00:19.1]} 34... h6 {[%clk 0:00:07.4]} 35. Qc7 {[%clk 0:00:18.4]} 35... Qa8
{[%clk 0:00:06.4]} 36. Rd7 {[%clk 0:00:18.7]} 36... Rg8 {[%clk 0:00:06]} 37. Qb7
{[%clk 0:00:18.1]} 37... Qe8 {[%clk 0:00:05]} 38. Rcc7 {[%clk 0:00:17.4]} 38...
Qf8 {[%clk 0:00:03.1]} 39. Qxe4 {[%clk 0:00:16.9]} 1-0

[Event "*** Titled Tuesday Blitz"]
[Site "Chess.com"]
[Date "2020.05.12"]
[Round "8"]
[White "TengisChess"]
[Black "Ladislav1969"]
[Result "1-0"]
[WhiteElo "2499"]
[BlackElo "2349"]
[TimeControl "180+1"]
[EndTime "11:33:02 PDT"]
[Termination "TengisChess won on time"]

1. d4 {[%clk 0:02:59.9]} 1... Nf6 {[%clk 0:02:59.6]} 2. Nf3 {[%clk 0:02:59]}
2... g6 {[%clk 0:02:59.3]} 3. g3 {[%clk 0:02:59.3]} 3... Bg7 {[%clk 0:02:59.6]}
4. Bg2 {[%clk 0:03:00.2]} 4... O-O {[%clk 0:02:59.7]} 5. O-O {[%clk 0:03:01.1]}
5... d5 {[%clk 0:02:59.9]} 6. Nc3 {[%clk 0:02:57]} 6... b6 {[%clk 0:02:58.7]} 7.
Bg5 {[%clk 0:02:56.7]} 7... Bb7 {[%clk 0:02:57.7]} 8. Ne5 {[%clk 0:02:56.8]}
8... Nbd7 {[%clk 0:02:42.7]} 9. a4 {[%clk 0:02:56]} 9... a5 {[%clk 0:02:40.9]}
10. Nxd7 {[%clk 0:02:53.6]} 10... Qxd7 {[%clk 0:02:40.2]} 11. Bxf6 {[%clk
0:02:41.8]} 11... Bxf6 {[%clk 0:02:37.9]} 12. e3 {[%clk 0:02:42.7]} 12... e6
{[%clk 0:02:34.5]} 13. Ne2 {[%clk 0:02:41.2]} 13... c5 {[%clk 0:02:24.5]} 14. c3
{[%clk 0:02:38.7]} 14... Rac8 {[%clk 0:02:22.6]} 15. Nf4 {[%clk 0:02:37.7]}
15... cxd4 {[%clk 0:02:10.9]} 16. exd4 {[%clk 0:02:37.2]} 16... Rc4 {[%clk
0:02:11.4]} 17. Re1 {[%clk 0:02:35.8]} 17... b5 {[%clk 0:02:02.8]} 18. axb5
{[%clk 0:02:32.1]} 18... Qxb5 {[%clk 0:01:49.3]} 19. Bf1 {[%clk 0:02:32]} 19...
Qc6 {[%clk 0:01:49.2]} 20. Bxc4 {[%clk 0:02:28.7]} 20... dxc4 {[%clk 0:01:48.5]}
21. f3 {[%clk 0:02:26.2]} 21... Ra8 {[%clk 0:01:43.4]} 22. Qe2 {[%clk
0:02:17.1]} 22... a4 {[%clk 0:01:38.7]} 23. Kf2 {[%clk 0:02:13.5]} 23... g5
{[%clk 0:01:33.6]} 24. Nh5 {[%clk 0:02:12.8]} 24... Be7 {[%clk 0:01:25.7]} 25.
Qe4 {[%clk 0:02:07.3]} 25... Qxe4 {[%clk 0:01:08.7]} 26. fxe4 {[%clk 0:02:06.4]}
26... Bc6 {[%clk 0:01:08.9]} 27. e5 {[%clk 0:02:04.5]} 27... Rb8 {[%clk
0:01:07.9]} 28. Re2 {[%clk 0:02:04.7]} 28... a3 {[%clk 0:01:00]} 29. bxa3 {[%clk
0:02:04.1]} 29... Rb3 {[%clk 0:00:59.9]} 30. Nf6+ {[%clk 0:01:57.5]} 30... Kg7
{[%clk 0:00:59.5]} 31. Re3 {[%clk 0:01:53.1]} 31... Rb2+ {[%clk 0:00:45.7]} 32.
Re2 {[%clk 0:01:53.1]} 32... Rb3 {[%clk 0:00:45.8]} 33. Rc2 {[%clk 0:01:51.8]}
33... Bxa3 {[%clk 0:00:36.7]} 34. g4 {[%clk 0:01:50.1]} 34... Bb2 {[%clk
0:00:31.8]} 35. Ra6 {[%clk 0:01:49.8]} 35... Bd5 {[%clk 0:00:21.5]} 36. Rd6
{[%clk 0:01:25]} 36... Bxc3 {[%clk 0:00:16.8]} 37. Rxc3 {[%clk 0:01:25.4]} 37...
Rxc3 {[%clk 0:00:15.1]} 38. Rd8 {[%clk 0:01:26.3]} 38... Rc2+ {[%clk 0:00:13.3]}
39. Ke1 {[%clk 0:01:25.4]} 39... Rxh2 {[%clk 0:00:09.9]} 40. Rg8+ {[%clk
0:01:22.6]} 40... Kh6 {[%clk 0:00:10.1]} 41. Rh8 {[%clk 0:01:20.8]} 41... Kg7
{[%clk 0:00:08.8]} 42. Rg8+ {[%clk 0:01:20.9]} 42... Kh6 {[%clk 0:00:08.7]} 43.
Rc8 {[%clk 0:01:13.9]} 43... Rg2 {[%clk 0:00:07.6]} 44. Rh8 {[%clk 0:01:12.3]}
44... Kg7 {[%clk 0:00:05.7]} 45. Rxh7+ {[%clk 0:01:11.9]} 45... Kg6 {[%clk
0:00:05.9]} 46. Rh8 {[%clk 0:01:11.3]} 46... c3 {[%clk 0:00:05.8]} 47. Rg8+
{[%clk 0:01:11.3]} 47... Kh6 {[%clk 0:00:04.5]} 48. Rc8 {[%clk 0:00:50.7]} 48...
c2 {[%clk 0:00:03.4]} 49. Rc7 {[%clk 0:00:41.5]} 1-0

[Event "*** Titled Tuesday Blitz"]
[Site "Chess.com"]
[Date "2020.05.12"]
[Round "8"]
[White "RubensCezila"]
[Black "quesfr"]
[Result "1-0"]
[WhiteElo "2450"]
[BlackElo "2276"]
[TimeControl "180+1"]
[EndTime "11:33:02 PDT"]
[Termination "RubensCezila won on time"]

1. c4 {[%clk 0:03:00.9]} 1... e6 {[%clk 0:02:57.9]} 2. e3 {[%clk 0:03:00.3]}
2... d5 {[%clk 0:02:57.2]} 3. Nc3 {[%clk 0:03:00.6]} 3... Nf6 {[%clk 0:02:55.5]}
4. Nf3 {[%clk 0:03:00.9]} 4... c5 {[%clk 0:02:50.5]} 5. cxd5 {[%clk 0:03:00.5]}
5... exd5 {[%clk 0:02:50.4]} 6. Bb5+ {[%clk 0:02:58.7]} 6... Nc6 {[%clk
0:02:48.4]} 7. O-O {[%clk 0:02:58.1]} 7... Be7 {[%clk 0:02:46.5]} 8. d4 {[%clk
0:02:56.5]} 8... O-O {[%clk 0:02:39.4]} 9. dxc5 {[%clk 0:02:51.3]} 9... Bxc5
{[%clk 0:02:39]} 10. b3 {[%clk 0:02:48.7]} 10... Bg4 {[%clk 0:02:28.3]} 11. Bb2
{[%clk 0:02:45.6]} 11... d4 {[%clk 0:02:07.1]} 12. exd4 {[%clk 0:02:42.1]} 12...
Nxd4 {[%clk 0:02:03.9]} 13. Be2 {[%clk 0:02:40.7]} 13... Nxe2+ {[%clk
0:01:55.6]} 14. Qxe2 {[%clk 0:02:41.6]} 14... Re8 {[%clk 0:01:52.7]} 15. Qc4
{[%clk 0:02:40.1]} 15... Rc8 {[%clk 0:01:45.8]} 16. Qf4 {[%clk 0:02:37.6]} 16...
Bd6 {[%clk 0:01:37.1]} 17. Qg5 {[%clk 0:02:28.2]} 17... h6 {[%clk 0:01:32.2]}
18. Qb5 {[%clk 0:02:24.7]} 18... Bxf3 {[%clk 0:01:26]} 19. gxf3 {[%clk
0:02:23.2]} 19... Rc5 {[%clk 0:01:19.7]} 20. Qxb7 {[%clk 0:02:04.5]} 20... Rg5+
{[%clk 0:00:52.6]} 21. Kh1 {[%clk 0:02:03.6]} 21... Re7 {[%clk 0:00:27.4]} 22.
Qc6 {[%clk 0:01:57.1]} 22... Rc7 {[%clk 0:00:21.4]} 23. Qa6 {[%clk 0:01:54]}
23... Qe7 {[%clk 0:00:15]} 24. Rfe1 {[%clk 0:01:47.2]} 24... Re5 {[%clk
0:00:14]} 25. Qf1 {[%clk 0:01:44.1]} 25... Qe6 {[%clk 0:00:11.2]} 26. Qg1 {[%clk
0:01:33.8]} 26... Qf5 {[%clk 0:00:10.8]} 27. Qg2 {[%clk 0:01:21.8]} 27... Qh5
{[%clk 0:00:10.4]} 28. Ne4 {[%clk 0:01:12.2]} 28... Rxe4 {[%clk 0:00:08.9]} 29.
Bxf6 {[%clk 0:01:10.1]} 29... Rxe1+ {[%clk 0:00:08.6]} 30. Rxe1 {[%clk 0:01:10]}
30... g5 {[%clk 0:00:07.3]} 31. f4 {[%clk 0:01:05.4]} 31... Kh7 {[%clk
0:00:05.7]} 32. Qa8 {[%clk 0:00:48.6]} 32... Kg6 {[%clk 0:00:04.8]} 33. Qe4+
{[%clk 0:00:34.6]} 33... Kxf6 {[%clk 0:00:04]} 34. Qd4+ {[%clk 0:00:35.2]} 34...
Kg6 {[%clk 0:00:02.8]} 35. Qxd6+ {[%clk 0:00:33.9]} 35... f6 {[%clk 0:00:03.1]}
36. f5+ {[%clk 0:00:31.6]} 36... Kxf5 {[%clk 0:00:02.6]} 37. Qd3+ {[%clk
0:00:26.1]} 37... Kg4 {[%clk 0:00:02.9]} 38. Qe4+ {[%clk 0:00:20.5]} 1-0